bitfinex/quotes_ETHUSD_20240924
["timestamp","ask_amount","ask_price","bid_price","bid_amount"]
[1727205387578,7.31362037,2647.4,2647.3,0.05067435]
[1727205387754,8.33554276,2647.4,2647.3,0.05067435]
[1727205387961,8.33554276,2647.4,2647.0,0.8151]
[1727205387962,3.77771,2647.1,2647.0,0.8151]
[1727205388267,0.55,2646.7,2646.4,0.8151]
[1727205388777,3.77845,2646.6,2646.4,0.8151]
[1727205388987,0.55,2646.5,2646.4,0.8151]
[1727205389859,1.3412297,2646.5,2646.4,0.8151]
[1727205390262,0.55,2646.5,2646.4,0.8151]
[1727205390662,1.3412297,2646.5,2646.4,0.8151]
[1727205391204,0.55,2646.5,2646.4,0.8151]
[1727205394271,0.55,2646.5,2646.4,0.8151]
[1727205395161,1.3412297,2646.6,2646.4,0.8151]
[1727205395890,0.55,2646.6,2646.4,0.8151]
[1727205396853,0.55,2646.6,2646.4,1.3151]
[1727205397081,1.3412297,2646.6,2646.4,1.3151]
[1727205398806,0.55,2646.6,2646.4,1.3151]
[1727205399009,1.3412297,2646.6,2646.4,1.3151]
[1727205399575,5.1196697,2646.6,2646.4,1.3151]
[1727205400889,5.1196697,2646.6,2646.4,1.8151]
[1727205401588,0.55,2646.5,2646.4,1.8151]
[1727205401906,1.3412297,2646.5,2646.4,1.8151]
[1727205402277,1.3412297,2646.5,2646.4,1.86637078]
[1727205404511,0.55,2646.5,2646.4,1.86637078]
[1727205405290,1.34197292,2646.5,2646.4,1.86637078]
[1727205405494,0.55,2646.5,2646.4,1.86637078]
[1727205405720,1.73684455,2646.5,2646.4,1.86637078]
[1727205406298,0.55,2646.5,2646.4,1.86637078]
[1727205406725,1.73684455,2646.5,2646.4,1.86637078]
[1727205406911,0.55,2646.5,2646.4,1.86637078]
[1727205407107,1.73684455,2646.5,2646.4,1.86637078]
[1727205410128,0.55,2646.5,2646.4,1.86637078]
[1727205411115,2.1324594,2646.5,2646.4,1.86637078]
[1727205411816,0.55,2646.5,2646.4,1.86637078]
[1727205412014,2.1324594,2646.5,2646.4,1.86637078]
[1727205413860,7.10020263,2646.5,2646.4,1.05127078]
[1727205414064,10.46294437,2646.5,2646.4,1.0]
[1727205414346,11.35709416,2646.5,2646.4,1.0]
[1727205414546,10.4315138,2646.5,2646.4,1.0]
[1727205416446,13.56726113,2646.5,2646.4,1.0]
[1727205416948,15.43351214,2646.5,2646.4,1.0]
[1727205417242,12.66002338,2646.5,2646.4,1.0]
[1727205421652,16.94083088,2646.5,2646.4,1.0]
[1727205422408,16.93996675,2646.5,2646.4,0.8878]
[1727205423547,12.66002338,2646.5,2646.4,0.8878]
[1727205424812,15.43043198,2646.5,2646.4,0.8878]
[1727205425955,12.66002338,2646.5,2646.4,0.8878]
[1727205430272,15.43043198,2646.5,2646.4,0.8878]
[1727205430566,16.03139304,2646.5,2646.4,0.8878]
[1727205430864,13.26165483,2646.5,2646.4,0.8878]
[1727205431639,16.03149403,2646.5,2646.4,0.8878]
[1727205431830,15.42986258,2646.5,2646.4,0.515334]
[1727205432658,12.29411525,2646.5,2646.4,0.515334]
[1727205432863,12.66002338,2646.5,2646.4,0.515334]
[1727205435051,11.86031344,2646.5,2646.4,0.515334]
[1727205435253,10.52106492,2646.5,2646.4,0.515334]
[1727205436671,11.07106492,2646.5,2646.4,0.515334]
[1727205436884,11.07107563,2646.5,2646.4,0.515334]
[1727205437059,14.20684306,2646.5,2646.4,0.515334]
[1727205437398,16.28247742,2646.5,2646.4,0.515334]
[1727205438194,16.28234941,2646.5,2646.4,0.515334]
[1727205442398,14.59351647,2646.5,2646.4,0.515334]
[1727205442894,14.59407583,2646.5,2646.4,0.515334]
[1727205444692,4.32857,2646.5,2646.4,1.290634]
[1727205447677,0.55,2646.5,2646.4,1.290634]
[1727205447876,4.32857,2646.5,2646.4,1.290634]
[1727205448085,5.69654767,2646.5,2646.4,1.290634]
[1727205448598,4.32857,2646.5,2646.4,1.290634]
[1727205448801,5.69658886,2646.5,2646.4,1.290634]
[1727205449001,4.32857,2646.5,2646.4,1.290634]
[1727205450087,9.26599786,2646.5,2646.4,0.515334]
[1727205450287,6.88988517,2646.5,2646.4,0.515334]
[1727205451211,0.55,2646.2,2646.1,0.7753]
[1727205451408,2.53117154,2646.2,2646.1,0.7753]
[1727205452201,2.53139829,2646.2,2646.1,0.7753]
[1727205453289,7.52512481,2646.4,2646.1,0.7753]
[1727205453631,2.53181319,2646.2,2646.1,0.7753]
[1727205454315,0.55,2646.3,2646.1,0.7753]
[1727205455812,4.32897,2646.3,2646.1,0.7753]
[1727205456125,8.15359234,2646.2,2645.7,0.8186]
[1727205456276,1.58651128,2645.9,2645.7,0.8186]
[1727205456482,1.58651128,2645.8,2645.7,0.8186]
[1727205457087,1.58651128,2645.8,2645.7,4.59831]
[1727205457322,1.58651128,2645.9,2645.7,4.59831]
[1727205457631,1.58651128,2645.9,2645.8,0.8186]
[1727205458129,2.53318646,2645.9,2645.8,0.8186]
[1727205458291,1.55637119,2645.9,2645.8,0.8186]
[1727205458497,0.55,2645.5,2645.2,0.8186]
[1727205458731,1.98467689,2645.4,2645.2,0.8186]
[1727205459111,1.98467689,2645.3,2645.2,0.8186]
[1727205461306,1.98467689,2645.4,2645.2,0.8186]
[1727205461524,1.98419642,2645.4,2645.2,0.8186]
[1727205461729,1.98419642,2645.3,2645.2,0.8186]
[1727205466146,1.98293386,2645.3,2645.2,0.8186]
[1727205467212,5.76312386,2645.4,2645.2,0.8186]
[1727205467410,1.58591578,2645.3,2645.2,0.8186]
[1727205467631,5.76312386,2645.4,2645.2,0.8186]
[1727205468131,1.98293386,2645.4,2645.2,0.8186]
[1727205468334,1.58572796,2645.3,2645.2,0.8186]
[1727205468523,1.18925266,2645.3,2645.2,0.8186]
[1727205468723,1.58572796,2645.4,2645.2,0.8186]
[1727205468923,1.58572796,2645.3,2645.2,0.8186]
[1727205470813,1.58572796,2645.4,2645.2,0.8186]
[1727205471314,1.18893657,2645.3,2645.2,0.8186]
[1727205471738,1.58572796,2645.4,2645.2,0.8186]
[1727205471942,1.58572796,2645.3,2645.2,0.8186]
[1727205472422,1.18886426,2645.3,2645.2,0.8186]
[1727205472640,1.58572796,2645.4,2645.2,1.28236328]
[1727205472832,1.18885408,2645.3,2645.2,1.28236328]
[1727205473558,1.18885408,2645.3,2645.2,0.8186]
[1727205474065,1.58572796,2645.3,2645.2,0.8186]
[1727205474369,1.58572796,2645.4,2645.2,0.8186]
[1727205474534,1.1887187,2645.3,2645.2,0.8186]
[1727205474957,1.58572796,2645.4,2645.2,0.8186]
[1727205475474,1.18861116,2645.3,2645.2,0.8186]
[1727205476526,1.18861116,2645.3,2645.2,4.24419328]
[1727205476770,1.18858352,2645.3,2645.2,5.05799328]
[1727205478242,1.18858352,2645.4,2645.3,3.78028]
[1727205481085,1.58572796,2645.5,2645.3,3.78028]
[1727205481236,1.58572796,2645.5,2645.2,5.05799328]
[1727205481237,0.55,2645.4,2645.2,0.8138]
[1727205481433,1.18834384,2645.3,2645.2,0.8138]
[1727205481849,1.18834384,2645.3,2645.0,3.8192828]
[1727205481850,1.58572796,2645.3,2645.0,4.6330828]
[1727205482037,0.79228524,2645.1,2645.0,4.6330328]
[1727205482351,0.79226411,2645.1,2645.0,4.6330328]
[1727205483270,1.18841167,2645.2,2645.0,4.6330828]
[1727205484174,1.18841167,2645.1,2645.0,4.6330828]
[1727205484676,0.79218644,2645.1,2645.0,4.6330828]
[1727205485590,1.18841167,2645.2,2645.0,4.6330828]
[1727205485797,0.79217855,2645.1,2645.0,4.6330828]
[1727205487469,0.79217855,2645.2,2645.1,3.78057]
[1727205487654,0.79212974,2645.2,2645.1,0.8026]
[1727205488054,0.79212974,2645.2,2645.1,4.58317]
[1727205488567,0.79212974,2645.2,2645.1,0.8026]
[1727205488752,1.18841167,2645.2,2645.1,0.8026]
[1727205489767,1.18841167,2645.2,2645.1,4.58317]
[1727205490655,1.18841167,2645.3,2645.1,4.58317]
[1727205490856,1.18841167,2645.2,2645.1,4.58317]
[1727205491190,0.79221271,2645.2,2645.1,6.87131361]
[1727205491609,0.79221271,2645.3,2645.2,4.58303]
[1727205491763,1.18841167,2645.3,2645.0,3.8192528]
[1727205491964,0.79235067,2645.2,2645.0,4.6218528]
[1727205492400,0.79235067,2645.1,2645.0,4.6218528]
[1727205492967,1.18841167,2645.2,2645.0,4.6218528]
[1727205493398,1.18841167,2645.1,2645.0,4.6218528]
[1727205493601,1.18841167,2645.2,2645.0,4.6218528]
[1727205493777,1.58572796,2645.3,2645.0,4.6218528]
[1727205493778,1.18841167,2645.1,2645.0,4.6218528]
[1727205493972,1.18841167,2645.2,2645.0,4.6218528]
[1727205494180,1.58572796,2645.3,2645.1,3.78057]
[1727205494380,1.18899167,2645.2,2645.1,3.78057]
[1727205494678,1.58572796,2645.3,2645.0,4.6218028]
[1727205494886,1.1890369,2645.1,2645.0,4.6218028]
[1727205495206,1.1890369,2645.1,2645.0,4.6218928]
[1727205498405,1.58572796,2645.1,2645.0,4.6218928]
[1727205502077,1.98244349,2645.2,2645.0,4.6218928]
[1727205502273,1.98550565,2645.1,2645.0,4.6218928]
[1727205504314,2.38260678,2645.3,2645.0,4.6218928]
[1727205504987,2.38260678,2645.3,2645.2,3.78043]
[1727205506586,2.38260678,2645.3,2645.1,3.78057]
[1727205506587,2.38260678,2645.4,2645.1,3.78057]
[1727205506793,2.38260678,2645.4,2645.3,4.58288]
[1727205507113,2.38456042,2645.5,2645.4,3.78014]
[1727205507334,2.38456042,2645.5,2645.3,4.58288]
[1727205507335,2.38456042,2645.6,2645.5,3.78]
[1727205507689,2.38456042,2645.6,2645.4,3.78014]
[1727205507912,2.38456042,2645.6,2645.5,3.78]
[1727205509045,2.38456042,2645.7,2645.6,3.77986]
[1727205509192,1.19169273,2645.7,2645.6,5.22775333]
[1727205509385,1.9855108,2645.7,2645.6,9.93112666]
[1727205509621,1.58903174,2645.9,2645.6,9.93112666]
[1727205509622,0.79380675,2645.8,2645.7,4.58231]
[1727205509831,1.19169273,2645.8,2645.7,4.58231]
[1727205510001,1.58903174,2646.0,2645.8,3.77957]
[1727205510203,1.98635462,2646.1,2645.8,3.77957]
[1727205510204,1.58903174,2645.9,2645.8,3.77957]
[1727205510406,1.1901901,2645.9,2645.8,3.77957]
[1727205511033,1.58903174,2645.9,2645.8,3.77957]
[1727205511204,1.58903174,2646.0,2645.8,3.77957]
[1727205511419,1.19018179,2645.9,2645.8,3.77957]
[1727205511622,1.19018179,2645.9,2645.8,5.2354543]
[1727205511806,1.19018179,2645.9,2645.7,0.8026]
[1727205512006,1.58903174,2645.8,2645.6,3.77986]
[1727205512638,1.1896882,2645.7,2645.6,3.77986]
[1727205513046,1.1896882,2645.7,2645.5,8.36245]
[1727205513343,1.1896882,2645.6,2645.5,4.58252]
[1727205514302,1.1896882,2645.7,2645.5,0.8026]
[1727205514509,1.1896882,2645.7,2645.6,3.77986]
[1727205514717,1.58903174,2645.8,2645.6,3.77986]
[1727205515247,1.18942522,2645.7,2645.6,3.77986]
[1727205515548,1.18935572,2645.7,2645.6,3.77986]
[1727205521271,1.18935572,2645.7,2645.5,0.8026]
[1727205521428,1.18935572,2645.7,2645.5,4.58259]
[1727205521621,1.58903174,2645.8,2645.5,4.58259]
[1727205521622,1.18935572,2645.6,2645.5,4.58259]
[1727205522066,1.18935572,2645.6,2645.5,3.77999]
[1727205522268,1.18935572,2645.6,2645.4,3.78011]
[1727205522425,0.79261426,2645.5,2645.4,3.78011]
[1727205522626,1.22785572,2645.6,2645.4,3.78011]
[1727205523021,1.18935572,2645.5,2645.4,3.78011]
[1727205523221,1.22785572,2645.6,2645.4,3.78011]
[1727205523674,1.18935572,2645.5,2645.4,3.78011]
[1727205524163,0.79262137,2645.5,2645.4,3.78011]
[1727205525028,1.18935572,2645.6,2645.5,4.5536]
[1727205526245,1.18935572,2645.6,2645.4,3.78007]
[1727205526461,1.18935572,2645.5,2645.4,7.56014]
[1727205527025,1.18935572,2645.6,2645.4,7.56014]
[1727205528223,1.18935572,2645.5,2645.4,3.78007]
[1727205529170,1.18935572,2645.6,2645.5,3.78]
[1727205530030,0.79261468,2645.6,2645.5,6.06126033]
[1727205530232,1.18891539,2645.7,2645.6,4.58466]
[1727205531669,1.58903174,2645.8,2645.7,3.77971]
[1727205532968,1.62753174,2645.8,2645.6,3.77986]
[1727205533168,1.58903174,2645.7,2645.6,3.77986]
[1727205534172,1.58903174,2645.7,2645.5,3.77998]
[1727205534373,1.58903174,2645.6,2645.3,3.78027]
[1727205534572,0.79275055,2645.4,2645.3,3.78027]
[1727205534749,1.18913866,2645.5,2645.3,3.78027]
[1727205535473,0.79274213,2645.4,2645.3,3.78027]
[1727205535669,1.18913866,2645.5,2645.3,3.78027]
[1727205535841,1.18913866,2645.4,2645.3,3.78027]
[1727205536048,1.18913866,2645.5,2645.3,3.78027]
[1727205536638,0.79281745,2645.4,2645.3,3.78027]
[1727205536864,1.18913866,2645.5,2645.3,3.78027]
[1727205537549,1.18913866,2645.4,2645.3,3.78028]
[1727205537752,1.18913866,2645.5,2645.4,3.78014]
[1727205537964,1.18925845,2645.5,2645.4,3.78014]
[1727205538364,1.58903174,2645.6,2645.4,3.78014]
[1727205539762,1.18937001,2645.5,2645.4,3.78014]
[1727205540168,1.58903174,2645.6,2645.4,3.78014]
[1727205540758,1.18939349,2645.5,2645.4,3.78014]
[1727205541140,1.58903174,2645.6,2645.4,3.78014]
[1727205542076,1.98227987,2645.7,2645.4,3.78014]
[1727205542077,1.58903174,2645.5,2645.4,3.78014]
[1727205542880,1.58903174,2645.5,2645.2,4.58511]
[1727205543050,1.58903174,2645.5,2645.3,3.78026]
[1727205543051,1.18963555,2645.4,2645.3,3.78026]
[1727205543243,1.58903174,2645.5,2645.3,3.78026]
[1727205543565,1.58903174,2645.4,2645.3,3.78026]
[1727205547765,1.58903174,2645.4,2645.2,3.78043]
[1727205547969,1.58903174,2645.4,2645.2,3.78034]
[1727205548371,1.58903174,2645.4,2645.3,3.78028]
[1727205549111,1.58903174,2645.4,2645.2,3.78034]
[1727205549306,1.58903174,2645.4,2645.2,7.56063]
[1727205549468,1.58903174,2645.3,2645.2,3.78029]
[1727205550167,1.58903174,2645.4,2645.0,2.24497613]
[1727205550367,1.19043076,2645.3,2645.2,3.78043]
[1727205550568,1.98272576,2645.5,2645.3,3.78028]
[1727205552110,1.58756513,2645.4,2645.3,3.78028]
[1727205552407,1.58755973,2645.4,2645.3,3.78028]
[1727205552591,1.98272576,2645.5,2645.3,3.78028]
[1727205552800,2.02122576,2645.4,2645.0,0.7970828]
[1727205552994,1.58772026,2645.1,2645.0,3.8192828]
[1727205553198,1.58772026,2645.2,2645.0,3.8192828]
[1727205553908,1.58772026,2645.1,2645.0,3.8192828]
[1727205556129,1.58772026,2645.2,2645.1,3.78057]
[1727205557932,1.58747814,2645.2,2645.1,3.78057]
[1727205558610,1.98434127,2645.2,2645.1,3.78057]
[1727205559332,1.98434127,2645.3,2645.1,3.78057]
[1727205559622,1.58741665,2645.2,2645.1,3.78057]
[1727205560389,1.98434127,2645.3,2645.1,3.78057]
[1727205561425,1.58736022,2645.2,2645.1,3.78057]
[1727205562234,1.98434127,2645.3,2645.1,3.78057]
[1727205562412,1.58746416,2645.2,2645.1,3.78057]
[1727205562618,1.98426245,2645.2,2645.1,3.78057]
[1727205563292,1.98426245,2645.3,2645.1,3.78057]
[1727205563531,1.58750434,2645.2,2645.1,3.78057]
[1727205564592,1.98426245,2645.3,2645.1,3.78057]
[1727205565334,1.98426245,2645.2,2645.1,3.78057]
[1727205565992,1.58763531,2645.2,2645.1,3.78057]
[1727205566388,1.98426245,2645.3,2645.1,3.78057]
[1727205566587,1.98426245,2645.2,2645.1,3.78057]
[1727205567220,1.98443872,2645.2,2645.1,3.78057]
[1727205567705,1.98443872,2645.3,2645.1,3.78057]
[1727205568389,1.58730011,2645.2,2645.1,3.78057]
[1727205568828,1.98443872,2645.2,2645.1,3.78057]
[1727205569495,1.98443872,2645.3,2645.1,3.78057]
[1727205569696,1.58724655,2645.2,2645.1,3.78057]
[1727205569890,1.58724593,2645.2,2645.1,3.78057]
[1727205570195,1.58723525,2645.2,2645.1,3.78057]
[1727205570647,1.58702502,2645.2,2645.1,3.78057]
[1727205570833,1.98443872,2645.2,2645.1,3.78057]
[1727205571150,1.98443872,2645.3,2645.1,3.78057]
[1727205571947,1.58723051,2645.2,2645.1,3.78049]
[1727205572744,0.0385,2645.4,2645.1,3.78049]
[1727205573043,1.98400733,2645.3,2645.1,3.78049]
[1727205573741,1.98400733,2645.3,2645.1,7.56099]
[1727205573947,1.98400733,2645.3,2645.1,3.78049]
[1727205574956,1.98400733,2645.2,2645.1,3.78049]
[1727205576567,1.98400733,2645.2,2645.0,3.8192228]
[1727205577965,1.58790937,2645.1,2645.0,3.8192228]
[1727205578257,1.98400733,2645.2,2645.0,3.8192228]
[1727205578456,1.98400733,2645.1,2645.0,3.8192228]
[1727205581675,1.98554742,2645.2,2645.0,3.8192228]
[1727205581888,1.98554742,2645.1,2645.0,3.8192228]
[1727205584362,1.98554742,2645.2,2645.0,3.8192228]
[1727205584870,1.98554742,2645.1,2645.0,3.8192228]
[1727205586358,1.98642152,2645.1,2645.0,3.8192228]
[1727205587743,1.98663495,2645.1,2645.0,3.8192228]
[1727205588249,2.38370583,2645.3,2645.0,7.5998528]
[1727205588445,1.98669048,2645.1,2645.0,3.8192128]
[1727205590296,2.38370583,2645.3,2645.0,3.8192128]
[1727205590484,1.98679562,2645.1,2645.0,3.8192128]
[1727205591149,2.38370583,2645.3,2645.0,3.8192128]
[1727205591490,1.9867692,2645.1,2645.0,3.8192128]
[1727205591658,2.38370583,2645.3,2645.0,3.8192128]
[1727205592366,1.98691499,2645.1,2645.0,3.8192128]
[1727205593092,2.38370583,2645.3,2645.1,0.5]
[1727205595851,2.38447734,2645.3,2645.1,0.5]
[1727205596276,2.38447734,2645.3,2645.1,4.2805]
[1727205596483,2.38447734,2645.3,2645.1,0.5]
[1727205597802,2.38447734,2645.3,2645.2,3.78043]
[1727205597950,2.38447734,2645.5,2645.4,3.78014]
[1727205598154,2.38447734,2645.6,2645.4,3.78014]
[1727205598356,2.38447734,2645.6,2645.4,5.22803333]
[1727205598800,2.38447734,2645.6,2645.4,3.78014]
[1727205599662,2.38447734,2645.7,2645.4,3.78014]
[1727205600583,2.38389584,2645.7,2645.4,3.78014]
[1727205600977,2.38389584,2645.6,2645.4,3.78014]
[1727205601488,2.38389584,2645.7,2645.4,3.78014]
[1727205601665,2.38389584,2645.6,2645.4,3.78014]
[1727205602063,2.38389584,2645.7,2645.4,3.78014]
[1727205602290,1.98562055,2645.5,2645.4,3.78014]
[1727205602803,2.38389584,2645.7,2645.4,3.78014]
[1727205603102,1.98560105,2645.5,2645.4,3.78014]
[1727205603261,2.38389584,2645.7,2645.4,3.78014]
[1727205603692,2.38389584,2645.7,2645.5,4.55793]
[1727205605215,2.38389584,2645.8,2645.6,3.77986]
[1727205607813,2.38389584,2645.9,2645.6,3.77986]
[1727205608475,2.38389584,2645.9,2645.5,4.55793]
[1727205608676,1.98435396,2645.6,2645.5,4.55792]
[1727205609779,1.98435396,2645.6,2645.5,3.77992]
[1727205611071,1.98435396,2645.6,2645.5,4.54822]
[1727205613416,1.98399449,2645.6,2645.5,4.54822]
[1727205615449,1.19040435,2645.7,2645.5,5.381055]
[1727205615600,1.19040435,2645.8,2645.7,3.77971]
[1727205615801,1.58714996,2645.9,2645.8,4.54787]
[1727205615802,0.79350487,2645.9,2645.8,4.54787]
[1727205616112,1.19040435,2646.0,2645.9,4.54773]
[1727205616461,1.18969421,2646.1,2646.0,3.77928]
[1727205616752,0.79305617,2646.3,2646.1,3.77914]
[1727205617035,0.79305617,2646.4,2646.3,0.7683]
[1727205617449,1.18969421,2646.6,2646.5,3.77857]
[1727205617450,0.79305617,2646.6,2646.5,3.77857]
[1727205617766,0.79305617,2646.8,2646.6,4.54673]
[1727205617897,1.18969421,2646.9,2646.7,6.60149171]
[1727205617898,0.79305617,2646.9,2646.7,6.60149171]
[1727205618248,0.79305617,2647.0,2646.9,3.778]
[1727205618453,0.79305617,2647.2,2647.1,3.77771]
[1727205618604,0.79305617,2647.2,2647.0,3.77784]
[1727205618803,0.79305617,2647.1,2647.0,3.77784]
[1727205619165,0.79305617,2647.1,2647.0,3.77786]
[1727205619352,0.79305617,2647.2,2647.0,3.77786]
[1727205619637,0.79305617,2647.2,2646.9,3.778]
[1727205619845,0.79305617,2647.2,2647.0,3.77785]
[1727205620338,0.79305617,2647.3,2647.0,3.77785]
[1727205621218,0.79305617,2647.2,2647.0,3.77785]
[1727205621415,0.79305617,2647.3,2647.0,3.77785]
[1727205621820,0.79305617,2647.3,2646.9,4.54192039]
[1727205622019,0.79305617,2647.3,2647.0,0.59898137]
[1727205622343,0.79305617,2647.4,2647.0,0.59898137]
[1727205622712,0.79305617,2647.4,2647.0,4.37681137]
[1727205623349,4.57021617,2647.5,2647.0,4.37681137]
[1727205623550,0.79305617,2647.4,2647.0,4.37681137]
[1727205624331,4.57021617,2647.5,2647.0,4.37681137]
[1727205625436,3.77716,2647.5,2647.0,4.37681137]
[1727205625865,4.57021617,2647.5,2647.0,4.37681137]
[1727205626374,7.55441,2647.5,2647.0,4.37681137]
[1727205626529,3.77716,2647.5,2647.0,3.77783]
[1727205626731,3.7773,2647.4,2647.0,3.77783]
[1727205628930,4.32719,2647.5,2647.0,3.77783]
[1727205629551,0.55,2647.5,2647.0,3.77783]
[1727205629752,0.0385,2647.3,2646.7,0.7683]
[1727205629956,4.32767,2647.2,2646.8,3.77813]
[1727205630935,0.55,2647.2,2646.8,3.77813]
[1727205632063,4.32759,2647.2,2646.9,0.07562625]
[1727205632469,0.55,2647.2,2646.9,0.07562625]
[1727205637174,4.32764,2647.2,2646.9,0.07562625]
[1727205637486,4.32764,2647.2,2646.7,4.54652]
[1727205637782,4.32764,2647.2,2647.0,0.07557818]
[1727205637783,0.55,2647.2,2647.0,0.07557818]
[1727205637984,0.55,2647.2,2646.8,3.77808]
[1727205638185,0.55,2647.2,2647.1,0.07554435]
[1727205638359,0.55,2647.2,2646.8,3.77808]
[1727205638898,0.55,2647.2,2646.9,0.07561202]
[1727205642734,0.79305617,2647.5,2647.0,0.8244]
[1727205643021,0.55,2647.5,2647.2,3.77756]
[1727205643396,0.55,2647.5,2647.3,0.07542921]
[1727205643730,0.55,2647.5,2647.1,3.77764]
[1727205643891,0.55,2647.6,2647.4,0.07539539]
[1727205644089,0.55,2647.6,2647.2,3.77749]
[1727205644335,0.79305617,2647.8,2647.5,1.5232549]
[1727205644487,0.0385,2647.9,2647.6,4.38948349]
[1727205644688,0.0385,2647.9,2647.6,3.85231775]
[1727205646197,0.55,2647.8,2647.6,0.07532775]
[1727205647307,0.55,2647.8,2647.5,3.77711]
[1727205647507,0.55,2647.8,2647.7,0.07505656]
[1727205647707,0.55,2647.8,2647.6,0.07509038]
[1727205647892,0.55,2647.8,2647.7,0.07505656]
[1727205648334,0.55,2647.8,2647.5,3.77711]
[1727205648503,0.55,2647.8,2647.7,0.07505656]
[1727205648715,0.55,2647.8,2647.6,0.07509038]
[1727205648936,0.55,2647.8,2647.7,0.07505656]
[1727205649269,0.55,2647.8,2647.4,8.3788]
[1727205649439,0.55,2647.8,2647.7,0.07505656]
[1727205649797,0.55,2647.8,2647.4,8.3788]
[1727205650442,4.32672,2647.8,2647.5,0.07279087]
[1727205650835,4.32672,2647.8,2647.3,3.77742]
[1727205651133,4.32672,2647.8,2647.6,0.07041726]
[1727205651337,4.32672,2647.8,2647.4,3.77727]
[1727205651633,3.77687,2647.7,2647.2,4.55037]
[1727205651837,0.55,2647.6,2647.3,0.07051873]
[1727205652931,0.0385,2647.5,2647.3,0.07051873]
[1727205653451,0.0385,2647.5,2647.1,0.5]
[1727205653452,0.55,2647.4,2647.1,0.5]
[1727205655453,0.55,2647.4,2647.1,4.27764]
[1727205655665,0.79305617,2647.5,2647.2,0.07554876]
[1727205655953,1.58714996,2647.8,2647.5,3.77714]
[1727205655954,0.79305617,2647.8,2647.5,3.77714]
[1727205656655,0.79305617,2647.8,2647.6,3.77698]
[1727205657311,0.79305617,2647.8,2647.5,0.59980833]
[1727205657312,1.34305617,2647.8,2647.7,0.07030274]
[1727205657711,1.34305617,2647.8,2647.5,3.77714]
[1727205657959,0.79305617,2647.7,2647.5,3.77714]
[1727205659541,0.79305617,2647.6,2647.5,3.77714]
[1727205660360,0.79305617,2647.6,2647.4,0.7729]
[1727205660361,1.18969421,2647.6,2647.4,0.7729]
[1727205660579,1.22819421,2647.5,2647.1,5.0506]
[1727205660732,0.79150177,2647.3,2647.1,5.0506]
[1727205661382,0.79150177,2647.2,2647.1,5.0506]
[1727205662257,1.18969421,2647.2,2647.1,5.0506]
[1727205663755,0.18969421,2647.2,2647.1,6.07822533]
[1727205666483,0.18969421,2647.2,2647.1,7.52611866]
[1727205667474,1.58714996,2647.4,2647.2,3.77749]
[1727205667641,1.58714996,2647.4,2647.1,2.30052533]
[1727205667847,2.17564996,2647.2,2647.1,0.5]
[1727205668060,2.57058762,2647.2,2647.1,0.5]
[1727205668265,4.36607,2647.2,2647.1,0.5]
[1727205668561,6.34841035,2647.2,2647.1,0.5]
[1727205669186,4.36607,2647.2,2647.1,0.5]
[1727205670209,5.17793537,2647.2,2647.1,0.5]
[1727205672278,5.17793537,2647.2,2647.1,0.56815361]
[1727205677006,10.38113306,2647.2,2647.1,0.56815361]
[1727205677164,8.00248343,2647.2,2647.1,0.56815361]
[1727205677367,8.00248343,2647.2,2647.1,0.5]
[1727205682504,10.37930963,2647.2,2647.1,0.5]
[1727205684484,8.00248343,2647.2,2647.1,0.5]
[1727205687002,11.00248343,2647.2,2647.1,0.5]
[1727205690643,9.19085069,2647.2,2647.1,0.5]
[1727205690931,6.77757,2647.2,2647.1,0.56844321]
[1727205692130,7.32757,2647.2,2647.1,0.56844321]
[1727205694920,7.36607,2647.2,2647.1,0.56844321]
[1727205695117,11.54048222,2647.2,2647.1,0.5]
[1727205695432,11.54058411,2647.2,2647.1,0.5]
[1727205695631,11.54058411,2647.2,2647.1,0.56670431]
[1727205696134,11.54058411,2647.2,2647.1,0.5]
[1727205696511,10.16577271,2647.2,2647.1,0.5]
[1727205697028,11.540677,2647.2,2647.1,0.5]
[1727205697195,10.16577271,2647.2,2647.1,0.5]
[1727205697640,11.54081081,2647.2,2647.1,0.5]
[1727205698357,13.91627745,2647.2,2647.1,0.5]
[1727205698658,11.54081081,2647.2,2647.1,0.5]
[1727205699522,13.91627745,2647.2,2647.1,0.5]
[1727205699829,12.46838412,2647.2,2647.1,0.5]
[1727205700018,6.77757,2647.2,2647.1,0.5]
[1727205700480,6.77757,2647.2,2647.1,0.56677078]
[1727205701447,7.32757,2647.2,2647.1,0.56677078]
[1727205703346,8.70462429,2647.2,2647.1,0.56677078]
[1727205705336,11.08066037,2647.2,2647.1,0.56677078]
[1727205705553,7.30309037,2647.2,2647.1,0.56677078]
[1727205705873,4.92705429,2647.2,2647.1,0.56677078]
[1727205706451,7.30494679,2647.2,2647.1,0.56677078]
[1727205706628,7.3055517,2647.2,2647.1,0.56677078]
[1727205707253,11.0831217,2647.2,2647.1,0.56677078]
[1727205707943,8.7052292,2647.2,2647.1,0.56677078]
[1727205708147,11.0831217,2647.2,2647.1,0.56677078]
[1727205710936,7.30698637,2647.2,2647.1,0.56677078]
[1727205711365,4.9276592,2647.2,2647.1,0.56677078]
[1727205712467,3.55,2647.2,2647.1,0.56677078]
[1727205712670,4.9276592,2647.2,2647.1,0.56677078]
[1727205713358,3.55,2647.2,2647.1,0.56677078]
[1727205713554,1.9276592,2647.2,2647.1,0.56677078]
[1727205713761,2.3809152,2647.2,2647.1,1.07875586]
[1727205713957,0.55,2647.2,2647.1,1.07875586]
[1727205714377,0.55,2647.2,2647.1,0.56677078]
[1727205716478,4.32757,2647.2,2647.1,0.56677078]
[1727205716765,5.7052292,2647.2,2647.1,0.5]
[1727205716977,5.7052292,2647.2,2647.1,0.56672331]
[1727205718059,4.32781,2647.1,2646.7,0.8187]
[1727205718368,1.98447048,2646.8,2646.7,0.8187]
[1727205719577,1.98447048,2646.8,2646.5,3.77847]
[1727205719578,2.93136458,2646.9,2646.5,4.59727]
[1727205719736,1.58779636,2646.6,2646.5,0.8187]
[1727205719938,1.98474545,2646.6,2646.5,0.8187]
[1727205720493,1.98488347,2646.6,2646.5,0.8187]
[1727205720694,1.98488347,2646.6,2646.5,4.59725]
[1727205723752,1.98511669,2646.6,2646.5,4.59725]
[1727205723978,2.38214003,2646.8,2646.5,0.8187]
[1727205724175,1.98516626,2646.6,2646.5,0.8187]